bitfinex-derivatives/quotes_BTCF0:USTF0_20250930
["timestamp","ask_amount","ask_price","bid_price","bid_amount"]
[1759227130122,0.01110431,112990.0,112980.0,1.62287908]
[1759227130323,0.01110431,112990.0,112980.0,1.62292716]
[1759227130716,0.03184936,112990.0,112980.0,1.62292716]
[1759227131612,0.47147788,112990.0,112980.0,1.38315072]
[1759227131819,0.47147788,112990.0,112980.0,0.51551181]
[1759227132013,0.47147788,112990.0,112980.0,0.06624371]
[1759227132317,1.5722761,112990.0,112980.0,0.00048733]
[1759227132520,2.06618788,112990.0,112980.0,0.02262733]
[1759227133021,1.73617966,112990.0,112980.0,0.02222733]
[1759227133224,2.06618788,112990.0,112980.0,0.02262733]
[1759227136128,1.73617966,112990.0,112980.0,0.02262733]
[1759227136328,2.06618788,112990.0,112980.0,0.02262733]
[1759227138719,2.06618788,112990.0,112980.0,0.00048733]
[1759227141142,2.06618788,112990.0,112980.0,8.733e-05]
[1759227141335,2.06618788,112990.0,112980.0,0.00048733]
[1759227144343,1.24226788,112990.0,112980.0,0.00048733]
[1759227144538,2.06390788,112990.0,112980.0,0.00048733]
[1759227144738,2.06370788,112990.0,112980.0,0.00048733]
[1759227145336,1.24226788,112990.0,112980.0,0.00048733]
[1759227145541,2.06354788,112990.0,112980.0,0.00048733]
[1759227147550,1.24226788,112990.0,112980.0,0.00048733]
[1759227147942,2.06314788,112990.0,112980.0,0.00048733]
[1759227149248,1.24226788,112990.0,112980.0,0.02264733]
[1759227149549,2.06306788,112990.0,112980.0,0.02264733]
[1759227149855,2.06306788,112990.0,112980.0,0.00048733]
[1759227150944,2.06306788,112990.0,112980.0,0.69547377]
[1759227150945,0.14146986,112990.0,112980.0,0.69547377]
[1759227151153,1.29191808,112990.0,112980.0,0.36546555]
[1759227151351,1.65271808,112990.0,112980.0,0.36546555]
[1759227152148,1.65271808,112990.0,112980.0,0.45393375]
[1759227152853,0.83227808,112990.0,112980.0,0.45393375]
[1759227153052,1.65271808,112990.0,112980.0,0.45393375]
[1759227157052,0.50226946,112990.0,112980.0,0.78394197]
[1759227157249,1.65271768,112990.0,112980.0,0.03545733]
[1759227157450,1.65271768,112990.0,112980.0,0.36546555]
[1759227159153,1.65271768,112990.0,112980.0,0.45393355]
[1759227159556,1.65271768,112990.0,112980.0,0.03545733]
[1759227159750,1.65271768,112990.0,112980.0,0.00048733]
[1759227159958,1.68432165,112990.0,112980.0,0.00048733]
[1759227160457,1.68432165,112990.0,112980.0,0.02224733]
[1759227160757,0.86388165,112990.0,112980.0,0.03545733]
[1759227160960,1.68428165,112990.0,112980.0,0.03545733]
[1759227161659,0.86388165,112990.0,112980.0,0.03545733]
[1759227161962,1.68428165,112990.0,112980.0,0.12392533]
[1759227162360,1.65267768,112990.0,112980.0,0.03545733]
[1759227164262,0.83227768,112990.0,112980.0,0.45393355]
[1759227164462,1.65267768,112990.0,112980.0,0.45393355]
[1759227165469,1.65267768,112990.0,112980.0,0.48570993]
[1759227169170,1.65267768,112990.0,112980.0,0.06723371]
[1759227170874,1.65267768,112990.0,112980.0,0.03226371]
[1759227171373,1.65267768,112990.0,112980.0,0.05395371]
[1759227171572,1.65267768,112990.0,112980.0,0.05355371]
[1759227171769,0.83227768,112990.0,112980.0,0.05395371]
[1759227171973,1.65259768,112990.0,112980.0,0.14242161]
[1759227173075,1.65259768,112990.0,112980.0,0.15640161]
[1759227176077,1.65255768,112990.0,112980.0,0.06793371]
[1759227176377,1.65255768,112990.0,112980.0,0.15640171]
[1759227177978,1.65255768,112990.0,112980.0,0.06793371]
[1759227178179,1.65255768,112990.0,112980.0,0.03226371]
[1759227179179,2.00300395,112990.0,112980.0,0.03226371]
[1759227179374,2.40300395,112990.0,112980.0,0.00048733]
[1759227179678,2.40300395,112990.0,112980.0,8.733e-05]
[1759227179872,2.40300395,112990.0,112980.0,0.00048733]
[1759227180479,1.58272395,112990.0,112980.0,0.00048733]
[1759227180779,2.40292395,112990.0,112980.0,0.00048733]
[1759227181078,2.43452792,112990.0,112980.0,0.00048733]
[1759227181980,1.61432792,112990.0,112980.0,0.00048733]
[1759227182178,2.43452792,112990.0,112980.0,0.00048733]
[1759227182575,0.098778,112980.0,112970.0,0.03216056]
[1759227182779,1.14249444,112980.0,112970.0,0.0008]
[1759227182979,0.1113758,112970.0,112960.0,0.122788]
[1759227183177,0.80218402,112970.0,112960.0,0.122788]
[1759227183380,0.80218402,112970.0,112960.0,0.123588]
[1759227183676,0.80227277,112970.0,112960.0,0.45359622]
[1759227183877,1.62247277,112970.0,112960.0,0.123588]
[1759227184379,1.62243277,112970.0,112960.0,0.123588]
[1759227185478,1.63043277,112970.0,112960.0,0.123588]
[1759227186886,1.63043277,112970.0,112960.0,0.02249]
[1759227187082,0.1113836,112960.0,112950.0,0.50020693]
[1759227187282,0.51263794,112960.0,112950.0,0.50100693]
[1759227187482,1.33279794,112960.0,112950.0,0.50100693]
[1759227189193,1.33779794,112960.0,112950.0,0.50100693]
[1759227189392,2.02860616,112960.0,112950.0,0.03511]
[1759227189580,2.02004934,112960.0,112950.0,0.03507551]
[1759227189781,2.03003934,112960.0,112950.0,0.01338551]
[1759227189987,2.03003934,112960.0,112950.0,0.0004]
[1759227191488,2.03003934,112960.0,112940.0,0.53282271]
[1759227191489,0.1113915,112950.0,112940.0,0.53282271]
[1759227191681,0.44139972,112950.0,112940.0,0.86363093]
[1759227192186,0.44139972,112950.0,112940.0,0.53362271]
[1759227192390,0.1113915,112950.0,112940.0,0.4862238]
[1759227194493,0.9314715,112950.0,112940.0,0.4862238]
[1759227194886,0.9314715,112950.0,112940.0,0.1254238]
[1759227195591,0.9314715,112950.0,112940.0,0.17282271]
[1759227196089,1.26179708,112950.0,112940.0,0.17282271]
[1759227196393,1.62259708,112950.0,112940.0,0.08432891]
[1759227196589,1.62259708,112950.0,112940.0,0.03693]
[1759227197092,1.61759708,112950.0,112940.0,0.03693]
[1759227197492,1.61759708,112950.0,112940.0,0.03613]
[1759227197882,1.61759708,112950.0,112940.0,0.03653]
[1759227198493,0.79751708,112950.0,112940.0,0.1250293]
[1759227198693,1.2872715,112950.0,112940.0,0.45535488]
[1759227198892,1.2872315,112950.0,112940.0,0.45535488]
[1759227200199,1.2912315,112950.0,112940.0,0.45535488]
[1759227200795,1.2912315,112950.0,112940.0,0.1250293]
[1759227200993,0.4711915,112950.0,112940.0,0.45535488]
[1759227201192,1.2911915,112950.0,112940.0,0.45535488]
[1759227201599,0.4761914,112950.0,112940.0,0.45535488]
[1759227201801,0.9354314,112950.0,112940.0,0.45535488]
[1759227202005,0.1153914,112950.0,112940.0,0.1250293]
[1759227202208,0.9353914,112950.0,112940.0,0.45535488]
[1759227202408,0.1153914,112950.0,112940.0,0.45535488]
[1759227202611,0.9353914,112950.0,112940.0,0.45535488]
[1759227203004,0.1153914,112950.0,112940.0,0.45535488]
[1759227203206,0.9353914,112950.0,112940.0,0.45535488]
[1759227205210,0.9353514,112950.0,112940.0,0.50275379]
[1759227205510,0.9353514,112950.0,112940.0,0.45535488]
[1759227206810,0.9313514,112950.0,112940.0,0.45835488]
[1759227207106,0.9313514,112950.0,112940.0,0.1280293]
[1759227207305,0.9313514,112950.0,112940.0,0.45835488]
[1759227209714,0.9313114,112950.0,112940.0,0.45835488]
[1759227211017,0.1113914,112950.0,112940.0,0.45835488]
[1759227211216,0.9312714,112950.0,112940.0,0.45835488]
[1759227211416,0.1113914,112950.0,112940.0,0.45835488]
[1759227211810,0.9312314,112950.0,112940.0,0.45835488]
[1759227212317,0.9312314,112950.0,112940.0,0.45789488]
[1759227212615,0.9312314,112950.0,112940.0,0.48973567]
[1759227213112,0.1113914,112950.0,112940.0,0.48973567]
[1759227213316,0.9311914,112950.0,112940.0,0.48973567]
[1759227213615,0.1113914,112950.0,112940.0,0.48973567]
[1759227213816,0.9311914,112950.0,112940.0,0.48973567]
[1759227215419,0.9311914,112950.0,112940.0,0.50529379]
[1759227218724,0.9310714,112950.0,112940.0,0.50529379]
[1759227219424,0.9310314,112950.0,112940.0,0.50529379]
[1759227221324,0.9310314,112950.0,112940.0,0.17496821]
[1759227221631,0.9310314,112950.0,112940.0,0.50529379]
[1759227222226,0.9310314,112950.0,112940.0,0.08646891]
[1759227222415,0.9310314,112950.0,112940.0,0.41679449]
[1759227222625,0.9310314,112950.0,112940.0,0.50529379]
[1759227224126,0.9310314,112950.0,112940.0,0.17496821]
[1759227224425,0.9310314,112950.0,112940.0,0.50529379]
[1759227227532,0.1113914,112950.0,112940.0,0.50529379]
[1759227227730,0.9309114,112950.0,112940.0,0.50529379]
[1759227228932,0.1113914,112950.0,112940.0,0.50529379]
[1759227229132,0.9308314,112950.0,112940.0,0.50529379]
[1759227230935,0.9308314,112950.0,112940.0,0.17496821]
[1759227231135,0.9308314,112950.0,112940.0,0.50529379]
[1759227231436,0.1113914,112950.0,112940.0,0.50529379]
[1759227231635,0.9307914,112950.0,112940.0,0.50529379]
[1759227232537,0.9307914,112950.0,112940.0,0.41679449]
[1759227232937,0.9307914,112950.0,112940.0,0.50529379]
[1759227237234,0.9307914,112950.0,112940.0,0.07248891]
[1759227237433,0.9307914,112950.0,112940.0,0.08631891]
[1759227237738,1.62191698,112950.0,112940.0,0.08631891]
[1759227238237,0.80251698,112950.0,112940.0,0.17481841]
[1759227238438,1.2914314,112950.0,112940.0,0.50514399]
[1759227240240,0.4721914,112950.0,112940.0,0.50514399]
[1759227240641,1.2914314,112950.0,112940.0,0.50514399]
[1759227241143,0.4721914,112950.0,112940.0,0.50514399]
[1759227241337,0.9306314,112950.0,112940.0,0.50514399]
[1759227242042,0.1113914,112950.0,112940.0,0.50514399]
[1759227242341,0.9306314,112950.0,112940.0,0.50514399]
[1759227242637,0.1113914,112950.0,112940.0,0.17481841]
[1759227242836,0.52060868,112960.0,112950.0,0.1234715]
[1759227242837,0.09401478,112960.0,112950.0,0.1234715]
[1759227243042,0.07132478,112960.0,112950.0,1.14492266]
[1759227243637,0.15980838,112960.0,112950.0,1.14492266]
[1759227244038,0.18249838,112960.0,112950.0,0.81459708]
[1759227244335,0.18249838,112960.0,112950.0,0.81559708]
[1759227244839,0.18249838,112960.0,112950.0,0.86336584]
[1759227245035,0.18249838,112960.0,112950.0,0.08374876]
[1759227245235,0.87362396,112960.0,112950.0,0.06259876]
[1759227245442,0.87362396,112960.0,112950.0,0.02215]
[1759227245742,0.55029838,112960.0,112950.0,0.02115]
[1759227245943,0.55029838,112960.0,112950.0,0.02155]
[1759227246143,0.55029838,112960.0,112950.0,0.03538]
[1759227246445,0.55029838,112960.0,112950.0,0.48604318]
[1759227249048,0.55029838,112960.0,112950.0,0.1557176]
[1759227250042,0.90165595,112960.0,112950.0,0.0322461]
[1759227250240,0.90165595,112960.0,112950.0,0.0672261]
[1759227250435,0.57133037,112960.0,112950.0,0.0004]
[1759227250739,0.57133037,112960.0,112940.0,0.53394964]
[1759227250740,0.1111808,112950.0,112940.0,0.53394964]
[1759227250940,0.1111808,112950.0,112940.0,0.53474964]
[1759227251850,0.1121808,112950.0,112940.0,0.54774964]
[1759227252437,0.1121808,112950.0,112940.0,0.53474964]
[1759227253053,0.1151808,112950.0,112940.0,0.53474964]
[1759227253248,0.1151808,112950.0,112940.0,0.20442406]
[1759227253446,0.1151808,112950.0,112940.0,0.53474964]
[1759227254250,0.1151808,112950.0,112940.0,0.87200862]
[1759227254953,0.9378608,112950.0,112940.0,0.78350942]
[1759227255152,1.2986608,112950.0,112940.0,0.82423996]
[1759227255455,1.2986608,112950.0,112940.0,0.84016262]
[1759227255852,0.9378608,112950.0,112940.0,0.84016262]
[1759227256050,0.9378608,112950.0,112940.0,0.17957806]
[1759227256252,0.9378608,112950.0,112940.0,0.84016262]
[1759227256752,0.9377008,112950.0,112940.0,0.84016262]
[1759227259859,1.62879308,112950.0,112940.0,0.84016262]
[1759227260756,1.26799308,112950.0,112940.0,0.84016262]
[1759227261763,1.26799308,112950.0,112940.0,0.50987034]
[1759227263954,0.9377008,112950.0,112940.0,0.50987034]
[1759227264157,1.26799308,112950.0,112940.0,0.50987034]
[1759227264560,1.26799308,112950.0,112940.0,0.17957806]
[1759227264760,1.62879308,112950.0,112940.0,0.09107876]
[1759227264961,1.62879308,112950.0,112940.0,0.17957806]
[1759227265360,1.62879308,112950.0,112940.0,0.50987034]
[1759227266356,1.62879308,112950.0,112940.0,0.17957806]
[1759227266556,1.62879308,112950.0,112940.0,0.50934034]
[1759227267262,1.62879308,112950.0,112940.0,0.17904806]
[1759227268560,1.2985008,112950.0,112940.0,0.17904806]
[1759227268760,1.62879308,112950.0,112940.0,0.17904806]
[1759227269462,1.26799308,112950.0,112940.0,0.17904806]
[1759227269663,1.62879308,112950.0,112940.0,0.17904806]
[1759227270263,1.62879308,112950.0,112940.0,0.17951806]
[1759227272260,1.62743308,112950.0,112940.0,0.17951806]
[1759227274466,0.80627308,112950.0,112940.0,0.17951806]
[1759227274765,1.62759308,112950.0,112940.0,0.09101876]
[1759227275355,1.62759308,112950.0,112940.0,0.42131104]
[1759227275861,1.64737029,112950.0,112940.0,0.42131104]
[1759227276158,0.82605029,112950.0,112940.0,0.42131104]
[1759227276360,1.64737029,112950.0,112940.0,0.42131104]
[1759227276560,1.64737029,112950.0,112940.0,0.04325]
[1759227277065,1.64737029,112950.0,112940.0,0.37354228]
[1759227277466,1.31707801,112950.0,112940.0,0.37354228]
[1759227277767,1.64737029,112950.0,112940.0,0.37354228]
[1759227280756,0.49575801,112950.0,112940.0,0.50981034]
[1759227280963,1.28577029,112950.0,112940.0,0.50981034]
[1759227281267,1.28537029,112950.0,112940.0,0.50981034]
[1759227281566,0.46525029,112950.0,112940.0,0.50981034]
[1759227281768,1.28561029,112950.0,112940.0,0.50981034]
[1759227281965,0.95531801,112950.0,112940.0,0.50981034]
[1759227282167,1.28561029,112950.0,112940.0,0.42131104]
[1759227282367,0.46525029,112950.0,112940.0,0.42131104]
[1759227282969,1.28553029,112950.0,112940.0,0.42131104]
[1759227283167,1.28549029,112950.0,112940.0,0.42131104]
[1759227283475,0.95519801,112950.0,112940.0,0.42131104]
[1759227283665,1.28549029,112950.0,112940.0,0.42131104]
[1759227284771,1.28541029,112950.0,112940.0,0.42131104]
[1759227285168,0.46525029,112950.0,112940.0,0.42131104]
[1759227285474,1.28525029,112950.0,112940.0,0.42131104]
[1759227286176,1.28525029,112950.0,112940.0,0.42131104]
[1759227286377,1.26547308,112950.0,112940.0,0.45317007]
[1759227286568,1.62627308,112950.0,112940.0,0.12287779]
[1759227286769,1.62627308,112950.0,112940.0,0.45317007]
[1759227286968,1.62627308,112950.0,112940.0,0.45237007]
[1759227287266,1.62627308,112950.0,112940.0,0.45277007]
[1759227287574,1.2959808,112950.0,112940.0,0.45277007]
[1759227287772,1.62227308,112950.0,112940.0,0.44577007]
[1759227287978,1.62227308,112950.0,112940.0,0.11747779]
[1759227288177,1.62927308,112950.0,112940.0,0.44577007]
[1759227290982,1.62927308,112950.0,112940.0,0.39800131]
[1759227291374,1.62927308,112950.0,112940.0,0.44577007]
[1759227294385,1.62927308,112950.0,112940.0,0.11547779]
[1759227294584,1.62927308,112950.0,112940.0,0.44577007]
[1759227295585,0.80927308,112950.0,112940.0,0.36614228]
[1759227295786,1.62871308,112950.0,112940.0,0.36614228]
[1759227297185,1.62871308,112950.0,112940.0,0.45464158]
[1759227300181,0.4789808,112950.0,112940.0,0.45464158]
[1759227300489,1.62871308,112950.0,112940.0,0.45464158]
[1759227301081,1.62871308,112950.0,112940.0,0.1243493]
[1759227301282,1.62871308,112950.0,112940.0,0.45464158]
[1759227302787,0.44847308,112950.0,112940.0,0.48650061]
[1759227302995,0.44847308,112950.0,112940.0,1.17759289]
[1759227302996,0.1181815,112950.0,112940.0,1.17759289]
[1759227303184,0.007,112950.0,112940.0,1.57759289]
[1759227303388,0.007,112950.0,112940.0,1.9237949]
[1759227303691,0.007,112950.0,112940.0,2.41290262]
[1759227304086,0.007,112950.0,112940.0,2.7431949]
[1759227304284,0.07132478,112960.0,112950.0,0.1250914]
[1759227304483,0.07132478,112960.0,112950.0,1.22609574]
[1759227305593,0.07132478,112960.0,112950.0,1.19424783]
[1759227305791,0.15980838,112960.0,112950.0,0.86395555]
[1759227305988,0.16980838,112960.0,112950.0,1.19524783]
[1759227306192,0.16980838,112960.0,112950.0,0.86495555]
[1759227306787,0.15980838,112960.0,112950.0,1.19424783]
[1759227306994,0.07132478,112960.0,112950.0,1.19624783]
[1759227307198,0.07132478,112960.0,112950.0,1.59624783]
[1759227307488,0.07132478,112960.0,112950.0,1.59619018]
[1759227307688,0.07132478,112960.0,112950.0,1.61206189]
[1759227307887,0.03632478,112960.0,112950.0,1.61206189]
[1759227308088,7.866e-05,112960.0,112950.0,1.61206189]
[1759227308492,7.866e-05,112960.0,112950.0,2.43138189]
[1759227308796,7.866e-05,112960.0,112950.0,2.43195189]
[1759227308999,7.866e-05,112960.0,112950.0,1.61263189]
[1759227309184,0.51139665,112960.0,112950.0,0.53615105]
[1759227309389,0.44033454,112960.0,112950.0,0.53743774]
[1759227309589,0.45401454,112960.0,112950.0,0.48974819]
[1759227309798,0.12372226,112960.0,112950.0,0.48974819]
[1759227309994,0.45401454,112960.0,112950.0,0.49014819]
[1759227310191,0.12372226,112960.0,112950.0,0.49014819]
[1759227310400,1.14510682,112960.0,112950.0,0.05786441]
[1759227310599,1.96434682,112960.0,112950.0,0.05786441]
[1759227310796,1.96434682,112960.0,112950.0,0.14635581]
[1759227310989,1.96434682,112960.0,112950.0,0.1141614]
[1759227311291,1.63405454,112960.0,112950.0,0.14635581]
[1759227311498,1.63405454,112960.0,112950.0,0.02567]
[1759227311896,1.63405454,112960.0,112950.0,0.02607]
[1759227311897,1.96434682,112960.0,112950.0,0.02607]
[1759227312397,1.63405454,112960.0,112950.0,0.02607]
[1759227312788,1.63405454,112960.0,112950.0,0.35636228]
[1759227312989,1.63405454,112960.0,112950.0,0.02607]
[1759227313193,1.30376226,112960.0,112950.0,0.38815669]
[1759227313497,1.63405454,112960.0,112950.0,0.38815669]
[1759227313896,1.70445847,112960.0,112950.0,0.38815669]
[1759227314197,1.70445887,112960.0,112950.0,0.05786441]
[1759227315899,1.70441887,112960.0,112950.0,0.14635591]
[1759227318389,0.88521887,112960.0,112950.0,0.14635591]
[1759227318594,0.55492619,112960.0,112950.0,0.47664859]
[1759227318796,1.37408619,112960.0,112950.0,0.47664859]
[1759227320997,0.55492619,112960.0,112950.0,0.47664859]
[1759227321301,0.99956619,112960.0,112950.0,0.85088859]
[1759227323298,0.18044619,112960.0,112950.0,0.85088859]
[1759227323491,0.18044619,112960.0,112950.0,0.15979591]
[1759227323696,0.18044619,112960.0,112950.0,0.49008859]
[1759227325303,0.18044619,112960.0,112950.0,0.85088859]
[1759227326601,0.09196259,112960.0,112950.0,0.52059591]
[1759227326802,0.09196259,112960.0,112950.0,0.85088859]
[1759227327504,0.09196259,112960.0,112950.0,0.89857814]
[1759227327704,0.07048259,112960.0,112950.0,1.62887082]
[1759227327895,0.07048259,112960.0,112950.0,1.29857814]
[1759227328102,0.07048259,112960.0,112950.0,1.25088859]
[1759227328304,0.07048259,112960.0,112950.0,1.29857814]
[1759227330104,0.07048259,112960.0,112950.0,1.59707641]
[1759227331306,0.07048259,112960.0,112950.0,1.54938686]
[1759227331698,0.04263759,112960.0,112950.0,1.61297279]
[1759227331902,0.87581505,112990.0,112980.0,0.101908]
[1759227332106,0.87581505,112990.0,112980.0,0.15557813]
[1759227332910,0.87588482,112990.0,112980.0,0.15557813]
[1759227333111,0.89184482,112990.0,112980.0,0.15657813]
[1759227333312,0.05924482,112990.0,112980.0,0.48687081]
[1759227333498,0.03681482,112990.0,112980.0,0.48687081]
[1759227333704,6.977e-05,112990.0,112980.0,1.6263333]
[1759227333900,0.01506977,112990.0,112980.0,1.29604062]
[1759227334205,0.03749977,112990.0,112980.0,0.53226999]
[1759227334411,0.01506977,112990.0,112980.0,1.68144267]
[1759227334711,0.01506977,112990.0,112980.0,2.38202662]
[1759227335108,0.02995917,112990.0,112980.0,2.38202662]
[1759227335307,0.02995917,112990.0,112980.0,1.61138892]
[1759227335511,0.01506977,112990.0,112980.0,2.43026892]
[1759227336510,0.01506977,112990.0,112980.0,2.79106892]
[1759227337609,0.08514069,113000.0,112990.0,0.1237506]
[1759227337801,0.77282,113020.0,113010.0,0.110295]
[1759227338002,0.77282,113020.0,113010.0,0.44058768]
[1759227338401,0.39703761,113020.0,113010.0,0.45402768]
[1759227338911,0.39703761,113020.0,113010.0,0.123735]
[1759227339108,0.03623761,113020.0,113010.0,0.123735]
[1759227339614,0.10634239,113020.0,113010.0,0.123735]
[1759227339814,0.12434239,113020.0,113010.0,0.124735]
[1759227340203,0.21277949,113020.0,113010.0,0.124735]
[1759227340407,0.21277949,113020.0,113000.0,1.26882716]
[1759227340408,0.1108817,113010.0,113000.0,0.0884524]
[1759227340616,0.81572438,113010.0,113000.0,0.0884524]
[1759227340914,0.1246359,113000.0,112990.0,0.1103056]
[1759227341114,0.1246359,113000.0,112990.0,0.1111056]
[1759227341115,0.45492858,113000.0,112990.0,0.1111056]
[1759227341412,0.45492858,113000.0,112990.0,0.1103056]
[1759227341614,0.45492858,113000.0,112990.0,0.02185]
[1759227341809,0.81572858,113000.0,112990.0,0.02225]
[1759227342009,0.1206408,112990.0,112980.0,0.02244]
[1759227342202,0.4814408,112990.0,112980.0,0.00139]
[1759227342407,0.81173348,112990.0,112980.0,0.00059]
[1759227342808,1.63033348,112990.0,112980.0,0.00099]
[1759227343007,1.63033348,112990.0,112980.0,0.00059]
[1759227343416,1.63833348,112990.0,112980.0,0.00099]
[1759227343617,1.63033348,112990.0,112980.0,0.00099]
[1759227344707,2.03039109,112990.0,112980.0,0.00099]
[1759227344914,1.21179109,112990.0,112980.0,0.00099]
[1759227345113,1.70005841,112990.0,112980.0,0.02297]
[1759227345316,0.48149841,112990.0,112980.0,0.02337]
[1759227345520,1.30005841,112990.0,112980.0,0.02337]
[1759227345715,0.48149841,112990.0,112980.0,0.02337]
[1759227345917,1.30005841,112990.0,112980.0,0.02337]
[1759227346306,0.48149841,112990.0,112980.0,0.02337]
[1759227346514,1.30005841,112990.0,112980.0,0.02337]
[1759227346719,0.48149841,112990.0,112980.0,0.02337]
[1759227346910,1.30005841,112990.0,112980.0,0.02337]
[1759227348412,0.48149841,112990.0,112980.0,0.44212968]
[1759227348606,1.28626841,112990.0,112980.0,0.45516968]
[1759227349013,0.46774841,112990.0,112980.0,0.45516968]
[1759227349616,0.10694841,112990.0,112980.0,0.45516968]
[1759227350118,0.10694841,112990.0,112980.0,0.36670268]
[1759227350516,0.10694841,112990.0,112980.0,0.45517038]
[1759227351115,0.02248761,112990.0,112980.0,0.81597038]
[1759227351416,5.761e-05,112990.0,112980.0,1.14626306]
[1759227351724,5.761e-05,112990.0,112980.0,1.54626306]
[1759227352515,5.761e-05,112990.0,112980.0,0.8856777]
[1759227352719,0.02216761,112990.0,112980.0,2.03445038]
[1759227353921,0.02216761,112990.0,112980.0,0.81597038]
[1759227354215,0.11062811,112990.0,112980.0,0.45517038]
[1759227354421,0.12340811,112990.0,112980.0,0.45517038]
[1759227354920,0.02216761,112990.0,112980.0,0.45517038]
[1759227356217,0.02216761,112990.0,112980.0,0.1248777]
[1759227356417,0.02216761,112990.0,112980.0,0.81597038]
[1759227357019,0.11062751,112990.0,112980.0,0.81597038]
[1759227357226,0.02216761,112990.0,112980.0,0.81597038]
[1759227358022,0.11062791,112990.0,112980.0,0.81597038]
[1759227358323,0.11062791,112990.0,112980.0,0.84770988]
[1759227359127,0.02216761,112990.0,112980.0,0.84770988]
[1759227360526,0.11062721,112990.0,112980.0,0.84770988]
[1759227360728,0.02216761,112990.0,112980.0,0.84770988]
[1759227360918,0.02216761,112990.0,112980.0,0.5174172]
[1759227361123,0.02216761,112990.0,112980.0,0.84770988]
[1759227362728,0.11062751,112990.0,112980.0,0.84770988]
[1759227363034,0.11062751,112990.0,112980.0,0.48690988]
[1759227364227,0.12340751,112990.0,112980.0,0.48690988]
[1759227364431,0.81450019,112990.0,112980.0,0.0551095]
[1759227364733,1.21450019,112990.0,112980.0,0.02297]
[1759227364927,2.03278019,112990.0,112980.0,0.02337]
[1759227365122,2.03278019,112990.0,112980.0,0.02297]
[1759227365436,2.03278019,112990.0,112980.0,0.02337]
[1759227366334,1.21450019,112990.0,112980.0,0.02337]
[1759227366533,0.88420751,112990.0,112980.0,0.02337]
[1759227366833,2.03274019,112990.0,112980.0,0.02337]
[1759227373835,2.03274019,112990.0,112980.0,0.00099]
[1759227374037,2.03274019,112990.0,112980.0,0.00059]
[1759227374234,1.21436161,112990.0,112980.0,0.02378]
[1759227374436,2.03256161,112990.0,112980.0,0.02378]
[1759227374736,2.03256161,112990.0,112980.0,0.02418]
[1759227375036,2.03256161,112990.0,112980.0,0.3543341]
[1759227375237,1.21436161,112990.0,112980.0,0.3543341]
[1759227375432,1.21436161,112990.0,112980.0,0.4428027]
[1759227375635,2.03256161,112990.0,112980.0,0.3543341]
[1759227376126,1.21436161,112990.0,112980.0,0.3543341]
[1759227376330,2.03252161,112990.0,112980.0,0.3543341]
[1759227377130,1.21436161,112990.0,112980.0,0.3543341]
[1759227377333,2.03252161,112990.0,112980.0,0.3543341]
[1759227377941,2.03252161,112990.0,112980.0,0.02418]
[1759227378433,2.03252161,112990.0,112980.0,0.3543341]
[1759227378839,2.03252161,112990.0,112980.0,0.02418]
[1759227379033,2.03252161,112990.0,112980.0,0.3543341]
[1759227381937,1.70236751,112990.0,112980.0,0.3543341]
[1759227382143,2.03252161,112990.0,112980.0,0.3543341]
[1759227382540,1.70236751,112990.0,112980.0,0.3543341]
[1759227382739,2.03252161,112990.0,112980.0,0.3543341]
[1759227382942,2.03252161,112990.0,112980.0,0.02418]
[1759227383443,1.70236751,112990.0,112980.0,0.02418]
[1759227383645,2.03252161,112990.0,112980.0,0.02418]
[1759227385344,2.03252161,112990.0,112980.0,0.00099]
[1759227385545,2.06404558,112990.0,112980.0,0.02231]
[1759227386248,1.73389148,112990.0,112980.0,0.02231]
[1759227386449,2.03244161,112990.0,112980.0,0.02231]
[1759227387153,2.06404558,112990.0,112980.0,0.02231]
[1759227388247,2.06400558,112990.0,112980.0,0.02231]
[1759227389457,2.06400558,112990.0,112980.0,0.3524641]
[1759227389658,1.24596558,112990.0,112980.0,0.3524641]
[1759227389858,2.06396558,112990.0,112980.0,0.3524641]
[1759227390752,2.06396558,112990.0,112980.0,0.02231]
[1759227391758,2.06396558,112990.0,112980.0,0.00099]
[1759227392058,1.73381148,112990.0,112980.0,0.02231]
[1759227392358,2.11111092,112990.0,112980.0,0.02231]
[1759227392558,2.11111092,112990.0,112980.0,0.00099]
[1759227393163,2.11111092,112990.0,112980.0,0.02231]
[1759227393964,1.29311092,112990.0,112980.0,0.02231]
[1759227394158,2.11111092,112990.0,112980.0,0.02231]
[1759227394462,2.11107092,112990.0,112980.0,0.02231]
[1759227395561,2.03232161,112990.0,112980.0,0.02231]
[1759227396462,2.03232161,112990.0,112980.0,0.00099]
[1759227396865,1.21436161,112990.0,112980.0,0.00099]
[1759227397055,2.03228161,112990.0,112980.0,0.00099]
[1759227397362,2.03228161,112990.0,112980.0,0.02231]
[1759227397562,2.03228161,112990.0,112980.0,0.00099]
[1759227398258,1.21436161,112990.0,112980.0,0.00099]
[1759227398463,2.03228161,112990.0,112980.0,0.02231]
[1759227398664,1.21436161,112990.0,112980.0,0.02231]
[1759227398964,2.03224161,112990.0,112980.0,0.02231]
[1759227399164,1.21436161,112990.0,112980.0,0.02231]
[1759227399366,2.03224161,112990.0,112980.0,0.02231]
[1759227399667,1.63224161,112990.0,112980.0,0.3524641]
[1759227399964,1.63224161,112990.0,112980.0,0.3842036]
[1759227401064,0.81436161,112990.0,112980.0,0.3842036]
[1759227401267,1.63220161,112990.0,112980.0,0.3842036]
[1759227401670,0.81436161,112990.0,112980.0,0.3842036]
[1759227401865,1.63220161,112990.0,112980.0,0.3842036]
[1759227402062,1.30204751,112990.0,112980.0,0.3524641]
[1759227402362,1.63220161,112990.0,112980.0,0.3524641]
[1759227403465,0.0884785,112970.0,112950.0,0.43782593]
[1759227403670,0.1244739,112960.0,112950.0,0.02282]
[1759227403864,0.12453151,112960.0,112950.0,0.1113117]
[1759227404372,0.1371772,112960.0,112950.0,0.1113117]
[1759227404867,0.7974854,112960.0,112950.0,0.1273117]
[1759227405067,1.6152854,112960.0,112950.0,0.1273117]
[1759227405371,1.6152854,112960.0,112950.0,0.1117117]
[1759227405971,1.6459313,112960.0,112950.0,0.4418658]
[1759227406867,1.7178711,112960.0,112950.0,0.4418658]
[1759227407068,0.9000711,112960.0,112950.0,0.4418658]
[1759227407370,1.7178711,112960.0,112950.0,0.4578658]
[1759227407573,0.9000711,112960.0,112950.0,0.4578658]
[1759227407766,1.7178711,112960.0,112950.0,0.4578658]
[1759227407968,0.569917,112960.0,112950.0,0.4578658]
[1759227408166,1.7178711,112960.0,112950.0,0.4578658]
[1759227408366,0.9000711,112960.0,112950.0,0.4578658]
[1759227408573,1.7178711,112960.0,112950.0,0.4578658]
[1759227409270,0.9000711,112960.0,112950.0,0.4578658]
[1759227409472,1.7178711,112960.0,112950.0,0.4578658]
[1759227410375,1.3570711,112960.0,112950.0,0.4578658]
[1759227411073,1.3570711,112960.0,112950.0,0.53756782]
[1759227411376,1.37683835,112960.0,112950.0,0.4578658]
[1759227412482,0.55903835,112960.0,112950.0,0.4578658]
[1759227412777,1.37683835,112960.0,112950.0,0.4578658]
[1759227413676,0.55903835,112960.0,112950.0,0.4578658]